[Event "White Rook U14 Final 2019"]
[Site "Sochi"]
[Date "2019.06.09"]
[Round "8.7"]
[White "Saikin, Ilia"]
[Black "Aldar Burentegsh"]
[Result "1/2-1/2"]
[ECO "D35"]
[WhiteElo "1641"]
[BlackElo "1812"]
[Annotator "NA"]
[PlyCount "75"]
[EventDate "2019.06.02"]
[EventCountry "RUS"]
[SourceTitle "playchess.com"]
[Source "ChessBase"]
[SourceQuality "1"]
[TimeControl "5400+30"]

1. d4 {[%emt 0:00:00]} d5 {[%emt 0:00:32]} 2. c4 {[%emt 0:00:08]} e6 {[%emt 0:00:32]} 3. Nc3 {[%emt 0:00:08]} Nf6 {[%emt 0:00:24]} 4. cxd5 {[%emt 0:00:08]} exd5 {[%emt 0:00:08]} 5. Bg5 {[%emt 0:00:00]} Be7 {[%emt 0:00:16]} 6. e3 {[%emt 0:01:37]} Be6 {[%emt 0:00:08]} 7. Nf3 {[%emt 0:02:40]} O-O {[%emt 0:00:40]} 8. Bd3 {[%emt 0:00:41]} Nbd7 {[%emt 0:01:12]} 9. O-O {[%emt 0:01:29]} h6 {[%emt 0:00:16]} 10. Bf4 {[%emt 0:01:52]} Nh5 {[%emt 0:01:12]} 11. Ne5 {[%emt 0:01:28]} Nxf4 {[%emt 0:05:29]} 12. exf4 {[%emt 0:00:08]} c5 {[%emt 0:01:05]} 13. Nxd7 {[%emt 0:12:58]} Qxd7 {[%emt 0:00:16]} 14. dxc5 {[%emt 0:06:00]} Bxc5 {[%emt 0:00:48]} 15. Qf3 {[%emt 0:01:21]} f6 {[%emt 0:04:25]} 16. f5 {[%emt 0:09:05]} Bf7 {[%emt 0:00:08]} 17. Rad1 {[%emt 0:02:17]} d4 {[%emt 0:00:41]} 18. Ne4 {[%emt 0:18:18]} b6 {[%emt 0:00:23]} 19. b3 {[%emt 0:27:43]} Bd5 {[%emt 0:01:27]} 20. Rc1 {[%emt 0:01:20]} Rfe8 {[%emt 0:05:09]} 21. Bb5 {[%emt 0:07:30]} Qxb5 {[%emt 0:03:41]} 22. Nxf6+ {[%emt 0:00:14]} gxf6 {[%emt 0:00:06]} 23. Qxd5+ {[%emt 0:00:14]} Kf8 {[%emt 0:00:00]} 24. a4 {[%emt 0:01:19]} Qe2 {[%emt 0:01:55]} 25. b4 {[%emt 0:01:34]} Rad8 {[%emt 0:04:16]} 26. Qb3 {[%emt 0:01:00]} Bd6 {[%emt 0:00:56]} 27. Qh3 {[%emt 0:00:27]} Kg7 {[%emt 0:00:48]} 28. g4 {[%emt 0:01:06]} Re4 {[%emt 0:01:09]} 29. f3 {[%emt 0:00:32]} Rf4 {[%emt 0:00:51]} 30. Rce1 {[%emt 0:00:25]} Qc4 {[%emt 0:00:57]} 31. Re6 {[%emt 0:00:31]} Qc7 {[%emt 0:01:47]} 32. Rfe1 {[%emt 0:00:49]} d3 {[%emt 0:01:49]} 33. Rxf6 {[%emt 0:00:42]} Kxf6 {[%emt 0:20:45]} 34. Qxh6+ {[%emt 0:00:09]} Kf7 {[%emt 0:00:14]} 35. Qh7+ {[%emt 0:00:00]} Kf8 {[%emt 0:00:19]} 36. Qh8+ {[%emt 0:00:09]} Kf7 {[%emt 0:00:10]} 37. Qh7+ {[%emt 0:00:04]} Kf8 {[%emt 0:00:52]} 38. Qh8+ {[%emt 0:00:04]} 1/2-1/2

[Event "White Rook U14 Final 2019"]
[Site "Sochi"]
[Date "2019.06.09"]
[Round "8.8"]
[White "Unurzul, Davaakhuu"]
[Black "Krupnova, Anna"]
[Result "0-1"]
[ECO "B13"]
[WhiteElo "1442"]
[BlackElo "1714"]
[Annotator "NA"]
[PlyCount "160"]
[EventDate "2019.06.02"]
[EventCountry "RUS"]
[SourceTitle "playchess.com"]
[Source "ChessBase"]
[SourceQuality "1"]
[TimeControl "5400+30"]

1. e4 {[%emt 0:00:00]} c6 {[%emt 0:00:00]} 2. Nf3 {[%emt 0:00:00]} d5 {[%emt 0:00:00]} 3. exd5 {[%emt 0:00:33]} cxd5 {[%emt 0:00:00]} 4. d4 {[%emt 0:00:30]} a6 {[%emt 0:00:00]} 5. h3 {[%emt 0:00:49]} Bf5 {[%emt 0:02:41]} 6. Bd3 {[%emt 0:00:53]} Bxd3 {[%emt 0:01:52]} 7. Qxd3 {[%emt 0:03:46]} e6 {[%emt 0:01:09]} 8. Nc3 {[%emt 0:04:06]} Bd6 {[%emt 0:03:24]} 9. O-O {[%emt 0:02:29]} Ne7 {[%emt 0:03:25]} 10. a3 {[%emt 0:18:56]} Nbc6 {[%emt 0:03:22]} 11. Re1 {[%emt 0:06:02]} h6 {[%emt 0:16:06]} 12. Ne2 {[%emt 0:13:43]} Qc7 {[%emt 0:02:53]} 13. c4 {[%emt 0:08:24]} dxc4 {[%emt 0:01:27]} 14. Qxc4 {[%emt 0:00:09]} O-O {[%emt 0:04:26]} 15. b4 {[%emt 0:02:36]} Rad8 {[%emt 0:14:56]} 16. Kh1 {[%emt 0:03:33]} b5 {[%emt 0:06:12]} 17. Qb3 {[%emt 0:06:15]} Nd5 {[%emt 0:04:15]} 18. Bb2 {[%emt 0:01:45]} Qb6 {[%emt 0:06:54]} 19. Red1 {[%emt 0:01:53]} Nce7 {[%emt 0:02:35]} 20. Rac1 {[%emt 0:03:55]} Ng6 {[%emt 0:04:18]} 21. Kg1 {[%emt 0:02:08]} Rc8 {[%emt 0:06:02]} 22. Ne5 {[%emt 0:03:25]} Qb7 {[%emt 0:08:46]} 23. Rxc8 {[%emt 0:08:35]} Rxc8 {[%emt 0:01:59]} 24. Qf3 {[%emt 0:02:08]} Nh4 {[%emt 0:03:49]} 25. Qe4 {[%emt 0:03:43]} Nf5 {[%emt 0:00:56]} 26. Nf4 {[%emt 0:00:34]} Rc7 {[%emt 0:00:29]} 27. Nxd5 {[%emt 0:00:38]} Qxd5 {[%emt 0:00:12]} 28. Qxd5 {[%emt 0:00:22]} exd5 {[%emt 0:00:06]} 29. g4 {[%emt 0:00:37]} Rc2 {[%emt 0:01:37]} 30. gxf5 {[%emt 0:00:47]} Rxb2 {[%emt 0:00:00]} 31. Rc1 {[%emt 0:00:43]} Bxe5 {[%emt 0:00:33]} 32. Rc8+ {[%emt 0:00:17]} Kh7 {[%emt 0:00:36]} 33. dxe5 {[%emt 0:00:06]} Re2 {[%emt 0:00:18]} 34. Re8 {[%emt 0:00:35]} d4 {[%emt 0:00:21]} 35. Kf1 {[%emt 0:00:05]} d3 {[%emt 0:00:20]} 36. e6 {[%emt 0:00:33]} fxe6 {[%emt 0:00:42]} 37. fxe6 {[%emt 0:00:04]} Kg6 {[%emt 0:00:59]} 38. Rd8 {[%emt 0:00:14]} Rxe6 {[%emt 0:00:00]} 39. Rxd3 {[%emt 0:00:35]} Kf6 {[%emt 0:00:39]} 40. Kg2 {[%emt 0:00:00]} Ke5 {[%emt 0:00:37]} 41. Kf3 {[%emt 0:00:26]} Kf5 {[%emt 0:01:02]} 42. Rc3 {[%emt 0:01:07]} g5 {[%emt 0:00:26]} 43. Rd3 {[%emt 0:01:17]} Rc6 {[%emt 0:00:29]} 44. Rd5+ {[%emt 0:00:28]} Ke6 {[%emt 0:00:00]} 45. Rd3 {[%emt 0:01:27]} Ke5 {[%emt 0:00:00]} 46. Ke3 {[%emt 0:00:17]} Rc4 {[%emt 0:01:01]} 47. Kf3 {[%emt 0:00:23]} Rf4+ {[%emt 0:00:00]} 48. Ke3 {[%emt 0:00:41]} Rh4 {[%emt 0:00:33]} 49. Ke2 {[%emt 0:00:00]} Re4+ {[%emt 0:00:51]} 50. Kf3 {[%emt 0:00:21]} Rd4 {[%emt 0:00:31]} 51. Rc3 {[%emt 0:00:18]} Kd5 {[%emt 0:00:33]} 52. Rc5+ {[%emt 0:00:00]} Kd6 {[%emt 0:00:14]} 53. Rc3 {[%emt 0:00:03]} Rh4 {[%emt 0:00:29]} 54. Ke2 {[%emt 0:00:53]} Kd5 {[%emt 0:00:43]} 55. Kd2 {[%emt 0:00:10]} Rf4 {[%emt 0:00:18]} 56. Ke2 {[%emt 0:00:34]} Re4+ {[%emt 0:01:08]} 57. Kd2 {[%emt 0:00:12]} Rh4 {[%emt 0:00:00]} 58. Ke2 {[%emt 0:00:00]} Kd4 {[%emt 0:01:08]} 59. Kd2 {[%emt 0:01:47]} Rf4 {[%emt 0:00:21]} 60. Rd3+ {[%emt 0:00:05]} Kc4 {[%emt 0:00:24]} 61. Rc3+ {[%emt 0:00:06]} Kd4 {[%emt 0:00:23]} 62. Rd3+ {[%emt 0:00:05]} Kc4 {[%emt 0:00:22]} 63. Rc3+ {[%emt 0:00:05]} Kd4 {[%emt 0:00:48]} 64. Rd3+ {[%emt 0:00:06]} Ke4 {[%emt 0:00:31]} 65. Re3+ {[%emt 0:00:04]} Kd5 {[%emt 0:00:37]} 66. Ke2 {[%emt 0:04:21]} Re4 {[%emt 0:00:30]} 67. Kd3 {[%emt 0:01:12]} Rxe3+ {[%emt 0:00:23]} 68. Kxe3 {[%emt 0:00:27]} Kc4 {[%emt 0:00:06]} 69. Ke4 {[%emt 0:00:00]} Kb3 {[%emt 0:00:36]} 70. Kf5 {[%emt 0:00:11]} Kxa3 {[%emt 0:00:10]} 71. Kg6 {[%emt 0:00:03]} Kxb4 {[%emt 0:00:14]} 72. Kxh6 {[%emt 0:00:00]} a5 {[%emt 0:00:29]} 73. Kxg5 {[%emt 0:00:05]} a4 {[%emt 0:00:06]} 74. f4 {[%emt 0:00:02]} a3 {[%emt 0:00:24]} 75. f5 {[%emt 0:00:04]} a2 {[%emt 0:00:11]} 76. h4 {[%emt 0:00:02]} a1=Q {[%emt 0:00:10]} 77. f6 {[%emt 0:00:02]} Qg1+ {[%emt 0:00:07]} 78. Kf5 {[%emt 0:00:13]} Qg8 {[%emt 0:00:44]} 79. h5 {[%emt 0:01:41]} Kc5 {[%emt 0:00:17]} 80. h6 {[%emt 0:00:04]} b4 {[%emt 0:00:29]} 0-1

[Event "White Rook U14 Final 2019"]
[Site "Sochi"]
[Date "2019.06.09"]
[Round "8.9"]
[White "Efimov, Leonid"]
[Black "Mongush, Kezhik"]
[Result "1-0"]
[ECO "A35"]
[WhiteElo "1666"]
[BlackElo "1824"]
[Annotator "NA"]
[PlyCount "79"]
[EventDate "2019.06.02"]
[EventCountry "RUS"]
[SourceTitle "playchess.com"]
[Source "ChessBase"]
[SourceQuality "1"]
[TimeControl "5400+30"]

1. Nf3 {[%emt 0:00:00]} c5 {[%emt 0:00:00]} 2. c4 {[%emt 0:00:00]} Nc6 {[%emt 0:00:00]} 3. Nc3 {[%emt 0:00:04]} g6 {[%emt 0:00:00]} 4. d4 {[%emt 0:00:15]} cxd4 {[%emt 0:00:05]} 5. Nxd4 {[%emt 0:00:18]} Bg7 {[%emt 0:00:08]} 6. Nxc6 {[%emt 0:00:37]} bxc6 {[%emt 0:00:06]} 7. e4 {[%emt 0:00:21]} d6 {[%emt 0:01:11]} 8. Be3 {[%emt 0:01:16]} Nf6 {[%emt 0:00:53]} 9. f3 {[%emt 0:00:40]} O-O {[%emt 0:00:51]} 10. Be2 {[%emt 0:02:00]} Rb8 {[%emt 0:00:54]} 11. Rb1 {[%emt 0:00:25]} Qc7 {[%emt 0:02:38]} 12. O-O {[%emt 0:00:57]} Rd8 {[%emt 0:00:27]} 13. Qa4 {[%emt 0:01:16]} a5 {[%emt 0:01:45]} 14. Rfd1 {[%emt 0:00:00]} Rb4 {[%emt 0:02:04]} 15. Qc2 {[%emt 0:00:28]} Ba6 {[%emt 0:01:43]} 16. a3 {[%emt 0:01:32]} Rb7 {[%emt 0:00:41]} 17. b4 {[%emt 0:11:28]} Rdb8 {[%emt 0:02:36]} 18. Qa4 {[%emt 0:05:46]} Ng4 {[%emt 0:01:30]} 19. fxg4 {[%emt 0:01:59]} Bxc3 {[%emt 0:00:10]} 20. b5 {[%emt 0:00:39]} cxb5 {[%emt 0:01:26]} 21. cxb5 {[%emt 0:00:19]} Qd7 {[%emt 0:00:44]} 22. Qc2 {[%emt 0:00:29]} Bxb5 {[%emt 0:07:53]} 23. Bxb5 {[%emt 0:00:25]} Rxb5 {[%emt 0:00:19]} 24. Rxb5 {[%emt 0:00:15]} Rxb5 {[%emt 0:01:12]} 25. Qxc3 {[%emt 0:00:19]} Qxg4 {[%emt 0:00:10]} 26. Re1 {[%emt 0:00:43]} h5 {[%emt 0:03:14]} 27. Qc4 {[%emt 0:05:19]} Rb2 {[%emt 0:00:54]} 28. Bf2 {[%emt 0:01:39]} h4 {[%emt 0:00:29]} 29. h3 {[%emt 0:03:46]} Qf4 {[%emt 0:00:38]} 30. Bd4 {[%emt 0:04:31]} Rxg2+ {[%emt 0:03:56]} 31. Kxg2 {[%emt 0:00:17]} Qg3+ {[%emt 0:00:00]} 32. Kf1 {[%emt 0:00:06]} Qf3+ {[%emt 0:00:00]} 33. Bf2 {[%emt 0:00:07]} Qxh3+ {[%emt 0:00:00]} 34. Ke2 {[%emt 0:00:12]} Qg4+ {[%emt 0:00:08]} 35. Kd2 {[%emt 0:00:26]} Qf3 {[%emt 0:00:35]} 36. Be3 {[%emt 0:00:41]} h3 {[%emt 0:00:08]} 37. Rf1 {[%emt 0:01:06]} Qg2+ {[%emt 0:00:43]} 38. Rf2 {[%emt 0:00:06]} Qxf2+ {[%emt 0:00:23]} 39. Bxf2 {[%emt 0:00:04]} h2 {[%emt 0:00:05]} 40. Qf1 {[%emt 0:00:03]} 1-0

[Event "White Rook U14 Final 2019"]
[Site "Sochi"]
[Date "2019.06.09"]
[Round "8.10"]
[White "Fomkin, Dmitry"]
[Black "Ivanov, Matvei"]
[Result "1-0"]
[ECO "B13"]
[WhiteElo "1733"]
[BlackElo "1529"]
[Annotator "NA"]
[PlyCount "145"]
[EventDate "2019.06.02"]
[EventCountry "RUS"]
[SourceTitle "playchess.com"]
[Source "ChessBase"]
[SourceQuality "1"]
[TimeControl "5400+30"]

1. e4 {[%emt 0:00:00]} c6 {[%emt 0:00:00]} 2. d4 {[%emt 0:00:00]} d5 {[%emt 0:00:00]} 3. exd5 {[%emt 0:00:00]} cxd5 {[%emt 0:00:00]} 4. Bd3 {[%emt 0:00:00]} Nc6 {[%emt 0:00:00]} 5. c3 {[%emt 0:00:00]} Nf6 {[%emt 0:00:00]} 6. h3 {[%emt 0:00:00]} g6 {[%emt 0:00:00]} 7. Nf3 {[%emt 0:00:00]} Bf5 {[%emt 0:00:05]} 8. Be2 {[%emt 0:00:01]} Bg7 {[%emt 0:02:00]} 9. O-O {[%emt 0:00:22]} O-O {[%emt 0:00:47]} 10. Bf4 {[%emt 0:01:13]} Qb6 {[%emt 0:13:26]} 11. Qb3 {[%emt 0:00:00]} Qxb3 {[%emt 0:02:00]} 12. axb3 {[%emt 0:00:00]} Ne4 {[%emt 0:06:56]} 13. b4 {[%emt 0:03:09]} a6 {[%emt 0:03:39]} 14. Bc7 {[%emt 0:04:36]} Rfc8 {[%emt 0:19:05]} 15. Bb6 {[%emt 0:02:34]} Nb8 {[%emt 0:19:28]} 16. b5 {[%emt 0:06:35]} Nd7 {[%emt 0:03:34]} 17. Ba5 {[%emt 0:00:15]} axb5 {[%emt 0:00:20]} 18. Nbd2 {[%emt 0:00:28]} Nd6 {[%emt 0:03:43]} 19. Bb4 {[%emt 0:01:57]} Ra6 {[%emt 0:04:53]} 20. g4 {[%emt 0:09:24]} Be6 {[%emt 0:03:16]} 21. Ng5 {[%emt 0:07:11]} Nf8 {[%emt 0:03:38]} 22. Nb3 {[%emt 0:06:02]} Bd7 {[%emt 0:03:27]} 23. Nc5 {[%emt 0:01:56]} Rxa1 {[%emt 0:00:10]} 24. Rxa1 {[%emt 0:00:06]} Bc6 {[%emt 0:00:13]} 25. Ra7 {[%emt 0:01:22]} Bf6 {[%emt 0:01:11]} 26. Nf3 {[%emt 0:02:26]} Rd8 {[%emt 0:02:38]} 27. Ba5 {[%emt 0:01:47]} Rc8 {[%emt 0:00:27]} 28. Ne5 {[%emt 0:01:52]} Ne6 {[%emt 0:03:29]} 29. Nxe6 {[%emt 0:04:30]} fxe6 {[%emt 0:00:04]} 30. f4 {[%emt 0:01:22]} Nc4 {[%emt 0:00:54]} 31. Bxc4 {[%emt 0:00:10]} bxc4 {[%emt 0:00:13]} 32. Nf3 {[%emt 0:04:55]} Kf7 {[%emt 0:01:03]} 33. Bb4 {[%emt 0:01:27]} Rc7 {[%emt 0:02:36]} 34. Kf2 {[%emt 0:01:17]} Rd7 {[%emt 0:00:35]} 35. Ra8 {[%emt 0:01:50]} b5 {[%emt 0:01:14]} 36. Rc8 {[%emt 0:00:06]} Bb7 {[%emt 0:00:20]} 37. Rb8 {[%emt 0:00:44]} Rc7 {[%emt 0:01:42]} 38. g5 {[%emt 0:01:29]} Bg7 {[%emt 0:00:00]} 39. Ke3 {[%emt 0:02:30]} Bc6 {[%emt 0:00:20]} 40. Bc5 {[%emt 0:01:16]} Be8 {[%emt 0:01:07]} 41. h4 {[%emt 0:00:38]} Bd7 {[%emt 0:00:00]} 42. Kf2 {[%emt 0:00:22]} Be8 {[%emt 0:00:29]} 43. Kg3 {[%emt 0:00:05]} Bd7 {[%emt 0:00:20]} 44. h5 {[%emt 0:01:08]} Be8 {[%emt 0:00:49]} 45. h6 {[%emt 0:00:38]} Bh8 {[%emt 0:00:03]} 46. Kf2 {[%emt 0:01:10]} Kf8 {[%emt 0:00:40]} 47. Ke2 {[%emt 0:00:30]} Kf7 {[%emt 0:00:04]} 48. Kd2 {[%emt 0:00:16]} Kf8 {[%emt 0:00:00]} 49. Kc1 {[%emt 0:00:29]} Kf7 {[%emt 0:00:00]} 50. Ne1 {[%emt 0:01:49]} Kf8 {[%emt 0:00:04]} 51. Nc2 {[%emt 0:00:33]} Kf7 {[%emt 0:02:05]} 52. Nb4 {[%emt 0:00:20]} Kf8 {[%emt 0:00:05]} 53. Kb1 {[%emt 0:00:33]} Kf7 {[%emt 0:00:23]} 54. Na6 {[%emt 0:01:04]} Rc6 {[%emt 0:00:06]} 55. Rb7 {[%emt 0:00:23]} Kf8 {[%emt 0:00:52]} 56. Bxe7+ {[%emt 0:02:14]} Kg8 {[%emt 0:00:07]} 57. Nc5 {[%emt 0:00:43]} b4 {[%emt 0:00:39]} 58. Rxb4 {[%emt 0:00:15]} Rc7 {[%emt 0:00:03]} 59. Bd6 {[%emt 0:00:59]} Rc6 {[%emt 0:00:04]} 60. Rb8 {[%emt 0:00:24]} Kf7 {[%emt 0:00:13]} 61. Rb7+ {[%emt 0:01:02]} Kg8 {[%emt 0:00:07]} 62. Re7 {[%emt 0:00:19]} Bf7 {[%emt 0:00:03]} 63. Nb7 {[%emt 0:01:42]} Rb6 {[%emt 0:00:17]} 64. Bc5 {[%emt 0:00:49]} Rc6 {[%emt 0:00:04]} 65. Nd6 {[%emt 0:00:20]} Be5 {[%emt 0:01:32]} 66. fxe5 {[%emt 0:00:00]} Kf8 {[%emt 0:01:22]} 67. Rxf7+ {[%emt 0:00:00]} Kg8 {[%emt 0:00:00]} 68. Rg7+ {[%emt 0:00:46]} Kf8 {[%emt 0:00:00]} 69. Rxh7 {[%emt 0:00:07]} Rxc5 {[%emt 0:00:00]} 70. dxc5 {[%emt 0:00:45]} d4 {[%emt 0:00:19]} 71. c6 {[%emt 0:00:30]} dxc3 {[%emt 0:00:09]} 72. c7 {[%emt 0:00:08]} Kg8 {[%emt 0:00:00]} 73. Rg7+ {[%emt 0:00:16]} 1-0

[Event "White Rook U14 Final 2019"]
[Site "Sochi"]
[Date "2019.06.09"]
[Round "8.11"]
[White "Valiev, Ravil"]
[Black "Ponomarev, Andrey A."]
[Result "1/2-1/2"]
[ECO "A56"]
[WhiteElo "1458"]
[BlackElo "1919"]
[Annotator "NA"]
[PlyCount "68"]
[EventDate "2019.06.02"]
[EventCountry "RUS"]
[SourceTitle "playchess.com"]
[Source "ChessBase"]
[SourceQuality "1"]
[TimeControl "5400+30"]

1. d4 {[%emt 0:00:00]} Nf6 {[%emt 0:00:00]} 2. c4 {[%emt 0:00:00]} c5 {[%emt 0:00:00]} 3. d5 {[%emt 0:00:00]} e5 {[%emt 0:00:00]} 4. Nc3 {[%emt 0:04:25]} d6 {[%emt 0:00:00]} 5. e4 {[%emt 0:01:20]} Be7 {[%emt 0:00:00]} 6. Bd3 {[%emt 0:01:28]} O-O {[%emt 0:00:00]} 7. Nge2 {[%emt 0:01:03]} Ne8 {[%emt 0:04:13]} 8. O-O {[%emt 0:01:32]} g6 {[%emt 0:00:37]} 9. f4 {[%emt 0:01:45]} Nd7 {[%emt 0:00:29]} 10. f5 {[%emt 0:00:48]} Ng7 {[%emt 0:00:53]} 11. Ng3 {[%emt 0:01:31]} a6 {[%emt 0:01:43]} 12. a4 {[%emt 0:01:23]} Nf6 {[%emt 0:00:59]} 13. Bh6 {[%emt 0:03:59]} Kh8 {[%emt 0:01:17]} 14. Be2 {[%emt 0:08:46]} Ng8 {[%emt 0:00:22]} 15. Be3 {[%emt 0:02:12]} b6 {[%emt 0:00:47]} 16. Qd2 {[%emt 0:02:11]} Rb8 {[%emt 0:01:57]} 17. Qc2 {[%emt 0:06:56]} Bd7 {[%emt 0:01:28]} 18. Rf3 {[%emt 0:03:00]} Bg5 {[%emt 0:33:40]} 19. Qd2 {[%emt 0:02:19]} Bxe3+ {[%emt 0:00:05]} 20. Qxe3 {[%emt 0:00:15]} Nf6 {[%emt 0:13:02]} 21. Raf1 {[%emt 0:09:49]} Qe7 {[%emt 0:02:34]} 22. Qg5 {[%emt 0:04:53]} Nge8 {[%emt 0:00:41]} 23. h4 {[%emt 0:02:55]} Rb7 {[%emt 0:01:51]} 24. h5 {[%emt 0:02:26]} Nxd5 {[%emt 0:03:47]} 25. f6 {[%emt 0:05:03]} Ndxf6 {[%emt 0:00:09]} 26. Rxf6 {[%emt 0:00:00]} Nxf6 {[%emt 0:00:03]} 27. Rxf6 {[%emt 0:02:58]} Be6 {[%emt 0:00:55]} 28. Nd5 {[%emt 0:03:26]} Bxd5 {[%emt 0:00:00]} 29. exd5 {[%emt 0:00:22]} Rg8 {[%emt 0:08:16]} 30. h6 {[%emt 0:02:14]} Rd8 {[%emt 0:03:01]} 31. Ne4 {[%emt 0:06:27]} Kg8 {[%emt 0:00:25]} 32. Kh2 {[%emt 0:02:01]} Qf8 {[%emt 0:01:11]} 33. Kg1 {[%emt 0:02:08]} Ra7 {[%emt 0:01:55]} 34. b3 {[%emt 0:00:53]} Rb7 {[%emt 0:06:06]} 1/2-1/2

[Event "White Rook U14 Final 2019"]
[Site "Sochi"]
[Date "2019.06.09"]
[Round "8.12"]
[White "Namay, Viktoria"]
[Black "Magizova, Yana"]
[Result "1-0"]
[ECO "E21"]
[WhiteElo "1359"]
[BlackElo "1585"]
[Annotator "NA"]
[PlyCount "77"]
[EventDate "2019.06.02"]
[EventCountry "RUS"]
[SourceTitle "playchess.com"]
[Source "ChessBase"]
[SourceQuality "1"]
[TimeControl "5400+30"]

1. d4 {[%emt 0:00:00]} Nf6 {[%emt 0:00:00]} 2. c4 {[%emt 0:00:00]} e6 {[%emt 0:00:00]} 3. Nf3 {[%emt 0:00:00]} b6 {[%emt 0:00:00]} 4. g3 {[%emt 0:00:00]} Bb7 {[%emt 0:00:00]} 5. Bg2 {[%emt 0:00:03]} Ne4 {[%emt 0:01:27]} 6. Nc3 {[%emt 0:01:46]} Bb4 {[%emt 0:00:00]} 7. Bd2 {[%emt 0:00:40]} Bxc3 {[%emt 0:01:26]} 8. Bxc3 {[%emt 0:01:50]} Nxc3 {[%emt 0:00:58]} 9. bxc3 {[%emt 0:00:06]} f5 {[%emt 0:00:51]} 10. O-O {[%emt 0:01:37]} d6 {[%emt 0:00:41]} 11. Qd3 {[%emt 0:00:16]} Qf6 {[%emt 0:01:27]} 12. Nh4 {[%emt 0:00:50]} Bxg2 {[%emt 0:01:22]} 13. Nxg2 {[%emt 0:00:06]} Nd7 {[%emt 0:05:36]} 14. Rfe1 {[%emt 0:00:55]} O-O {[%emt 0:00:57]} 15. Nf4 {[%emt 0:00:20]} g5 {[%emt 0:00:49]} 16. Ng2 {[%emt 0:03:36]} Rf7 {[%emt 0:03:30]} 17. f4 {[%emt 0:05:33]} d5 {[%emt 0:03:47]} 18. fxg5 {[%emt 0:02:57]} Qxg5 {[%emt 0:00:45]} 19. Nf4 {[%emt 0:00:20]} Nf6 {[%emt 0:07:46]} 20. Nxe6 {[%emt 0:04:01]} Qh5 {[%emt 0:01:23]} 21. Nf4 {[%emt 0:03:00]} Qg5 {[%emt 0:04:48]} 22. cxd5 {[%emt 0:05:37]} Ng4 {[%emt 0:05:33]} 23. e4 {[%emt 0:03:12]} Qh6 {[%emt 0:05:00]} 24. h3 {[%emt 0:01:22]} fxe4 {[%emt 0:01:26]} 25. Rxe4 {[%emt 0:01:34]} Nf6 {[%emt 0:00:45]} 26. Re6 {[%emt 0:00:45]} Rg7 {[%emt 0:01:41]} 27. Qf3 {[%emt 0:16:19]} Qg5 {[%emt 0:02:22]} 28. Kf2 {[%emt 0:09:35]} Rf8 {[%emt 0:00:55]} 29. Rae1 {[%emt 0:01:06]} Nh5 {[%emt 0:08:55]} 30. Re8 {[%emt 0:04:23]} Rgf7 {[%emt 0:04:26]} 31. R1e5 {[%emt 0:02:11]} Qh6 {[%emt 0:25:37]} 32. Rxf8+ {[%emt 0:01:56]} Qxf8 {[%emt 0:02:23]} 33. Qxh5 {[%emt 0:06:33]} a5 {[%emt 0:05:43]} 34. Ke3 {[%emt 0:00:00]} h6 {[%emt 0:02:51]} 35. Re6 {[%emt 0:00:44]} Re7 {[%emt 0:00:59]} 36. Qe5 {[%emt 0:01:41]} Rxe6 {[%emt 0:00:05]} 37. Qxe6+ {[%emt 0:00:00]} Kh7 {[%emt 0:01:07]} 38. Ke4 {[%emt 0:00:45]} Qg7 {[%emt 0:00:30]} 39. Qf5+ {[%emt 0:01:00]} 1-0

[Event "White Rook U14 Final 2019"]
[Site "Sochi"]
[Date "2019.06.09"]
[Round "8.13"]
[White "Erastov, Semen"]
[Black "Shakhov, Dmitriy"]
[Result "1-0"]
[ECO "E04"]
[WhiteElo "2028"]
[BlackElo "1624"]
[Annotator "NA"]
[PlyCount "67"]
[EventDate "2019.06.02"]
[EventCountry "RUS"]
[SourceTitle "playchess.com"]
[Source "ChessBase"]
[SourceQuality "1"]
[TimeControl "5400+30"]

1. d4 {[%emt 0:00:00]} d5 {[%emt 0:00:00]} 2. c4 {[%emt 0:00:00]} e6 {[%emt 0:00:00]} 3. Nf3 {[%emt 0:00:00]} Nf6 {[%emt 0:00:00]} 4. g3 {[%emt 0:00:00]} dxc4 {[%emt 0:00:00]} 5. Bg2 {[%emt 0:00:00]} b5 {[%emt 0:00:29]} 6. Ne5 {[%emt 0:06:05]} Nd5 {[%emt 0:00:27]} 7. a4 {[%emt 0:00:10]} c6 {[%emt 0:03:58]} 8. O-O {[%emt 0:05:05]} Bb7 {[%emt 0:05:20]} 9. Nc3 {[%emt 0:01:35]} a6 {[%emt 0:04:06]} 10. Nxd5 {[%emt 0:08:53]} cxd5 {[%emt 0:08:29]} 11. f4 {[%emt 0:03:29]} Be7 {[%emt 0:16:41]} 12. f5 {[%emt 0:03:34]} O-O {[%emt 0:05:39]} 13. fxe6 {[%emt 0:01:14]} fxe6 {[%emt 0:00:09]} 14. Bh3 {[%emt 0:00:07]} Qc8 {[%emt 0:06:21]} 15. e4 {[%emt 0:09:43]} dxe4 {[%emt 0:05:24]} 16. Rxf8+ {[%emt 0:02:00]} Bxf8 {[%emt 0:04:24]} 17. Qh5 {[%emt 0:03:47]} Bd5 {[%emt 0:09:20]} 18. Qf7+ {[%emt 0:01:38]} Kh8 {[%emt 0:00:06]} 19. axb5 {[%emt 0:01:03]} a5 {[%emt 0:03:13]} 20. Bg5 {[%emt 0:06:33]} Bb4 {[%emt 0:07:12]} 21. Rf1 {[%emt 0:01:38]} Na6 {[%emt 0:03:29]} 22. bxa6 {[%emt 0:01:09]} Rxa6 {[%emt 0:00:08]} 23. Be7 {[%emt 0:02:25]} Ra8 {[%emt 0:02:07]} 24. Qh5 {[%emt 0:01:51]} Qe8 {[%emt 0:03:21]} 25. Rf8+ {[%emt 0:01:40]} Qxf8 {[%emt 0:01:34]} 26. Bxf8 {[%emt 0:00:04]} Bxf8 {[%emt 0:00:41]} 27. Nf7+ {[%emt 0:00:09]} Kg8 {[%emt 0:00:00]} 28. Ng5 {[%emt 0:00:04]} h6 {[%emt 0:02:43]} 29. Qf7+ {[%emt 0:00:34]} Kh8 {[%emt 0:00:42]} 30. Bxe6 {[%emt 0:00:31]} Bxe6 {[%emt 0:01:33]} 31. Nxe6 {[%emt 0:00:04]} c3 {[%emt 0:00:00]} 32. bxc3 {[%emt 0:00:10]} a4 {[%emt 0:00:00]} 33. Nxf8 {[%emt 0:00:09]} a3 {[%emt 0:00:00]} 34. Ne6 {[%emt 0:00:06]} 1-0